fUST/lending_fUST_20240225
["ID","MTS","AMOUNT","RATE_DAILY","PERIOD"]
[315064542,1708800649605,-200.5294442,0.00022274,2]
[315064543,1708800649614,-200.5294442,0.00022274,2]
[315064544,1708800649623,-200.5294442,0.00022274,2]
[315064545,1708800649633,-150.0,0.00022293,2]
[315064546,1708800649642,-170.648064,0.00022336,2]
[315064547,1708800649650,-187.34775,0.00022336,2]
[315064548,1708800649660,-7859.6,0.00022339,2]
[315064549,1708800649670,-300.0,0.00022418,2]
[315064550,1708800649679,-1538.5,0.00022435,2]
[315064551,1708800649689,-1216.98,0.00022435,2]
[315064552,1708800649698,-1200.87,0.00022435,2]
[315064553,1708800649708,-500.0,0.00022441,2]
[315064554,1708800649717,-701.74,0.00022441,2]
[315064555,1708800649727,-500.0,0.00022441,2]
[315064556,1708800649737,-1404.72,0.00022441,2]
[315064557,1708800649747,-500.0,0.00022441,2]
[315064558,1708800649757,-1467.89,0.00022441,2]
[315064559,1708800649766,-819.25,0.00022441,2]
[315064560,1708800649775,-1457.43,0.00022441,2]
[315064561,1708800649872,-151.0,0.00022445,2]
[315064562,1708800649896,-298.68547,0.00022445,2]
[315064563,1708800649908,-155.60208635,0.00022463,2]
[315064564,1708800649917,-650.46,0.00022465,2]
[315064565,1708800649927,-500.0,0.00022465,2]
[315064566,1708800649940,-191.464653,0.00022465,2]
[315064567,1708800649950,-151.0,0.00022465,2]
[315064568,1708800649960,-515.24,0.00022465,2]
[315064569,1708800649972,-580.73195067,0.00022465,2]
[315064570,1708800649981,-811.09,0.00022465,2]
[315064571,1708800649990,-6417.31,0.00022465,2]
[315064572,1708800649999,-2303.42,0.00022465,2]
[315064573,1708800650009,-597.64,0.00022465,2]
[315064574,1708800650019,-1079.68,0.00022465,2]
[315064575,1708800650028,-972.69,0.00022465,2]
[315064576,1708800650037,-6369.84,0.00022465,2]
[315064577,1708800650046,-719.51,0.00022465,2]
[315064578,1708800650055,-500.0,0.00022465,2]
[315064579,1708800650064,-508.79,0.00022465,2]
[315064580,1708800650074,-615.07,0.00022465,2]
[315064581,1708800650083,-728.44,0.00022465,2]
[315064582,1708800650093,-500.0,0.00022465,2]
[315064583,1708800650102,-736.18,0.00022465,2]
[315064584,1708800650111,-3669.97,0.00022465,2]
[315064585,1708800650121,-5846.78,0.00022465,2]
[315064586,1708800650130,-832.11,0.00022465,2]
[315064587,1708800650139,-1298.43,0.00022465,2]
[315064588,1708800650149,-1862.95184529,0.00022501,2]
[315064589,1708800650158,-182.43376,0.00022519,2]
[315064590,1708800650167,-502.048253,0.00022519,2]
[315064591,1708800650177,-1856.271128,0.00022519,2]
[315064592,1708800650186,-449.453006,0.00022519,2]
[315064593,1708800650195,-674.179509,0.00022519,2]
[315064594,1708800650205,-309.926044,0.00022519,2]
[315064595,1708800650215,-196.196581,0.00022519,2]
[315064596,1708800650224,-198.877478,0.00022519,2]
[315064597,1708800650234,-7463.89204512,0.0002259,2]
[315064598,1708800650243,-7859.6,0.00022613,2]
[315064599,1708800650252,-300.0,0.00022628,2]
[315064600,1708800650262,-160.0,0.00022646,3]
[315064601,1708800650274,-50000.0,0.000227,2]
[315064602,1708800650285,-170.648064,0.00022702,2]
[315064603,1708800650295,-187.34775,0.00022702,2]
[315064604,1708800650305,-1538.5,0.00022709,2]
[315064605,1708800650314,-1216.98,0.00022709,2]
[315064606,1708800650323,-1200.87,0.00022709,2]
[315064607,1708800650332,-465.19812697,0.00022715,2]
[315064608,1708800650342,-701.74,0.00022715,2]
[315064609,1708800650354,-500.0,0.00022715,2]
[315064610,1708800650363,-1404.72,0.00022715,2]
[315064611,1708800650372,-500.0,0.00022715,2]
[315064612,1708800650382,-1467.89,0.00022715,2]
[315064613,1708800650392,-819.25,0.00022715,2]
[315064614,1708800650400,-1457.43,0.00022715,2]
[315064615,1708800650409,-650.46,0.00022739,2]
[315064616,1708800650418,-500.0,0.00022739,2]
[315064617,1708800650428,-515.24,0.00022739,2]
[315064618,1708800650436,-811.09,0.00022739,2]
[315064619,1708800650446,-6417.31,0.00022739,2]
[315064620,1708800650455,-2303.42,0.00022739,2]
[315064621,1708800650464,-597.64,0.00022739,2]
[315064622,1708800650474,-1079.68,0.00022739,2]
[315064623,1708800650483,-972.69,0.00022739,2]
[315064624,1708800650492,-6369.84,0.00022739,2]
[315064625,1708800650500,-719.51,0.00022739,2]
[315064626,1708800650509,-500.0,0.00022739,2]
[315064627,1708800650518,-508.79,0.00022739,2]
[315064628,1708800650526,-615.07,0.00022739,2]
[315064629,1708800650535,-728.44,0.00022739,2]
[315064630,1708800650545,-500.0,0.00022739,2]
[315064631,1708800650553,-736.18,0.00022739,2]
[315064632,1708800650562,-3669.97,0.00022739,2]
[315064633,1708800650571,-5846.78,0.00022739,2]
[315064634,1708800650580,-151.0,0.00022739,2]
[315064635,1708800650589,-277.017551,0.00022739,2]
[315064636,1708800650599,-832.11,0.00022739,2]
[315064637,1708800650608,-1298.43,0.00022739,2]
[315064638,1708800650618,-446.942332,0.00022744,2]
[315064639,1708800650627,-446.942332,0.00022744,2]
[315064640,1708800650636,-502.048253,0.00022794,2]
[315064641,1708800650645,-1856.271128,0.00022794,2]
[315064642,1708800650654,-449.453006,0.00022794,2]
[315064643,1708800650664,-674.179509,0.00022794,2]
[315064644,1708800650673,-309.926044,0.00022794,2]
[315064645,1708800650683,-300.0,0.00022838,2]
[315064646,1708800650693,-620.0443992,0.00022877,2]
[315064647,1708800650704,-306.0,0.00022879,2]
[315064648,1708800650713,-386.1233369,0.00022879,2]
[315064649,1708800650722,-7859.6,0.00022887,2]
[315064650,1708800650732,-1538.5,0.00022983,2]
[315064651,1708800650741,-1216.98,0.00022983,2]
[315064652,1708800650750,-3941.140004,0.00022983,2]
[315064653,1708800650760,-3941.140004,0.00022983,2]
[315064654,1708800650769,-1200.87,0.00022983,2]
[315064655,1708800650779,-307.0038895,0.00022983,2]
[315064656,1708800650788,-153.0,0.00022983,2]
[315064657,1708800650797,-701.74,0.00022989,2]
[315064658,1708800650807,-500.0,0.00022989,2]
[315064659,1708800650817,-1404.72,0.00022989,2]
[315064660,1708800650826,-155.66,0.00022989,2]
[315064661,1708800650835,-1467.89,0.00022989,2]
[315064662,1708800650844,-819.25,0.00022989,2]
[315064663,1708800650853,-1457.43,0.00022989,2]
[315064664,1708800650862,-500.0,0.00022999,2]
[315064665,1708800650872,-458.13166133,0.00022999,2]
[315064666,1708800650880,-51896.07402033,0.00023,2]
[315064667,1708800650889,-34484.97886647,0.00023,2]
[315064668,1708800650898,-10065.846839,0.00023,10]
[315064669,1708800650907,-1000.0,0.00023,23]
[315064670,1708800650916,-151.0,0.00023,2]
[315064671,1708800650925,-151.0,0.00023,2]
[315064672,1708800650933,-387.051633,0.00023,2]
[315064673,1708800650942,-387.051633,0.00023,2]
[315064674,1708800650951,-4010.133591,0.00023,2]
[315064675,1708800650960,-4010.133591,0.00023,2]
[315064676,1708800650968,-650.46,0.00023013,2]
[315064677,1708800650977,-500.0,0.00023013,2]
[315064678,1708800650987,-151.0,0.00023013,2]
[315064679,1708800650996,-515.24,0.00023013,2]
[315064680,1708800651005,-811.09,0.00023013,2]
[315064681,1708800651015,-6417.31,0.00023013,2]
[315064682,1708800651024,-2303.42,0.00023013,2]
[315064683,1708800651033,-597.64,0.00023013,2]
[315064684,1708800651041,-1079.68,0.00023013,2]
[315064685,1708800651050,-972.69,0.00023013,2]
[315064686,1708800651059,-6369.84,0.00023013,2]
[315064687,1708800651068,-719.51,0.00023013,2]
[315064688,1708800651077,-500.0,0.00023013,2]
[315064689,1708800651086,-508.79,0.00023013,2]
[315064690,1708800651095,-615.07,0.00023013,2]
[315064691,1708800651104,-728.44,0.00023013,2]
[315064692,1708800651113,-500.0,0.00023013,2]
[315064693,1708800651122,-736.18,0.00023013,2]
[315064694,1708800651131,-3669.97,0.00023013,2]
[315064695,1708800651140,-5846.78,0.00023013,2]
[315064696,1708800651148,-832.11,0.00023013,2]
[315064697,1708800651157,-300.0,0.00023048,2]
[315064698,1708800651166,-182.43376,0.00023069,2]
[315064699,1708800651175,-166.302036,0.00023069,2]
[315064700,1708800651184,-170.648064,0.00023069,2]
[315064701,1708800651194,-187.34775,0.00023069,2]
[315064702,1708800651205,-502.048253,0.00023069,2]
[315064703,1708800651214,-1856.271128,0.00023069,2]
[315064704,1708800651223,-449.453006,0.00023069,2]
[315064705,1708800651232,-674.179509,0.00023069,2]
[315064706,1708800651241,-309.926044,0.00023069,2]
[315064707,1708800651250,-446.942332,0.00023097,2]
[315064708,1708800651259,-446.942332,0.00023097,2]
[315064709,1708800651270,-50000.0,0.00023108,2]
[315064710,1708800651279,-3621.48162617,0.00023123,2]
[315064711,1708800651292,-8676.37021695,0.00023123,2]
[315064712,1708800651304,-5864.77842573,0.00023123,2]
[315064713,1708800651381,-500.0,0.00019178,2]
[315064714,1708800651391,-179.60062672,0.00019427,2]
[315064715,1708800651403,-320.39937328,0.00019427,2]
[315064716,1708800651413,-500.0,0.00019701,2]
[315064717,1708800651421,-500.0,0.00019975,2]
[315064718,1708800651431,-27241.8,0.0001999,3]
[315064719,1708800651441,-500.0,0.00020249,2]
[315064720,1708800651450,-329.83424643,0.00020523,2]
[315064721,1708800651460,-1298.43,0.00023013,2]
[315064722,1708800651470,-31837.36973115,0.00023123,2]
[315064723,1708800651480,-151.0,0.00023123,2]
[315064724,1708800651490,-153.0,0.00023123,2]
[315064725,1708800651499,-153.0,0.00023123,2]
[315064726,1708800651508,-153.0,0.00023123,2]
[315064727,1708800651517,-15039.67239914,0.00023125,2]
[315064728,1708800651533,-3010.12114344,0.00023125,2]
[315064729,1708800651580,-338.86419644,0.00019178,2]
[315064730,1708800651591,-161.13580356,0.00019178,2]
[315064731,1708800651601,-696.61,0.0001999,3]
[315064732,1708800651610,-886.61492456,0.00023125,2]
[315064733,1708800651622,-527.5000003,0.00023125,2]
[315064734,1708800651779,-500.0,0.00019452,2]
[315064735,1708800651789,-500.0,0.00019726,2]
[315064736,1708800651799,-500.0,0.0002,2]
[315064737,1708800651809,-500.0,0.00021642,2]
[315064738,1708800651819,-500.0,0.00021642,2]
[315064739,1708800651827,-491.99124279,0.00021642,2]
[315064740,1708800651836,-153.0,0.00023123,2]
[315064741,1708800651846,-24344.86047428,0.00023125,2]
[315064754,1708801534221,-1883.983241,0.00018377,2]
[315064755,1708801534240,-16116.016759,0.00018411,2]
[315064756,1708801534261,-500.0,0.00019178,2]
[315064757,1708801534280,-500.0,0.00019178,2]
[315064758,1708801534299,-500.0,0.00019178,2]
[315064759,1708801534318,-501.62181897,0.00019178,2]
[315064760,1708801534337,-500.0,0.00019178,2]
[315064761,1708801534358,-500.0,0.00019178,2]
[315064762,1708801534378,-500.0,0.00019178,2]
[315064763,1708801534398,-500.0,0.00019178,2]
[315064764,1708801534418,-500.0,0.00019178,2]
[315064765,1708801534439,-500.0,0.00019178,2]
[315064766,1708801534458,-500.0,0.00019178,2]
[315064767,1708801534478,-500.0,0.00019178,2]
[315064768,1708801534498,-544.42,0.00019178,2]
[315064769,1708801534518,-500.0,0.00019178,2]
[315064770,1708801534537,-290.84173611,0.00019178,2]
[315064771,1708801534559,-500.0,0.00019178,2]
[315064772,1708801534579,-500.0,0.00019178,2]
[315064773,1708801534599,-1030.31,0.00019178,2]
[315064774,1708801534619,-559.61,0.00019178,2]
[315064775,1708801534639,-971.62,0.00019178,2]
[315064776,1708801534660,-500.0,0.00019178,2]
[315064777,1708801534679,-500.0,0.00019178,2]
[315064778,1708801534699,-500.0,0.00019178,2]
[315064779,1708801534719,-500.0,0.00019178,2]
[315064780,1708801534738,-393.20705888,0.00019178,2]
[315064781,1708801534757,-128.2899227,0.00019178,2]
[315064783,1708801630143,-439.97754,0.000189,2]
[315064801,1708801832615,-281.345214,0.00018339,2]
[315064802,1708801832624,-18000.0,0.0001834,2]
[315064803,1708801832633,-73.60794659,0.000189,2]
[315064804,1708801832642,-371.7100773,0.00019178,2]
[315064805,1708801832652,-570.73700149,0.00019178,2]
[315064806,1708801832663,-500.0,0.00019178,2]
[315064807,1708801832672,-500.0,0.00019178,2]
[315064808,1708801832681,-500.0,0.00019178,2]
[315064809,1708801832690,-500.0,0.00019178,2]
[315064810,1708801832699,-500.0,0.00019178,2]
[315064811,1708801832709,-500.0,0.00019178,2]
[315064812,1708801832718,-500.0,0.00019178,2]
[315064813,1708801832727,-500.0,0.00019178,2]
[315064814,1708801832736,-500.0,0.00019178,2]
[315064815,1708801832748,-568.6,0.00019178,2]
[315064816,1708801832757,-452.49398355,0.00019178,2]
[315064817,1708801832766,-500.0,0.00019178,2]
[315064818,1708801832775,-500.0,0.00019178,2]
[315064819,1708801832783,-500.0,0.00019178,2]
[315064820,1708801832792,-500.0,0.00019178,2]
[315064821,1708801832801,-172.45288,0.00019178,2]
[315064823,1708801832811,-167.182793,0.00019178,2]
[315064825,1708801832820,-166.666666,0.00019178,2]
[315064827,1708801832829,-645.95,0.00019322,2]
[315064829,1708801832839,-212.46551129,0.00019322,2]
[315064831,1708801832850,-704.04980982,0.00019322,2]
[315064833,1708801832859,-500.0,0.00019322,2]
[315064835,1708801832868,-3981.15,0.00019322,2]
[315064837,1708801832877,-500.0,0.00019322,2]
[315064839,1708801832886,-500.0,0.00019322,2]
[315064841,1708801832895,-500.0,0.00019322,2]
[315064843,1708801832905,-500.0,0.00019322,2]
[315064845,1708801832915,-500.0,0.00019322,2]
[315064847,1708801832925,-614.0,0.00019322,2]
[315064849,1708801832934,-500.0,0.00019322,2]
[315064851,1708801832943,-500.0,0.00019322,2]
[315064853,1708801832953,-500.0,0.00019323,2]
[315064855,1708801832964,-500.0,0.00019323,2]
[315064857,1708801832973,-500.0,0.00019323,2]
[315064859,1708801832982,-500.0,0.00019323,2]
[315064861,1708801832991,-500.0,0.00019323,2]
[315064863,1708801833001,-559.7,0.00019323,2]
[315064865,1708801833010,-899.78,0.00019323,2]
[315064867,1708801833019,-287.05748937,0.00019323,2]
[315064868,1708801833028,-500.0,0.00019323,2]
[315064870,1708801833037,-500.0,0.00019323,2]
[315064872,1708801833047,-728.78,0.00019323,2]
[315064874,1708801833057,-500.0,0.00019323,2]
[315064876,1708801833066,-500.0,0.00019323,2]
[315064878,1708801833076,-500.0,0.00019323,2]
[315064880,1708801833085,-500.0,0.00019323,2]
[315064882,1708801833095,-500.0,0.00019323,2]
[315064884,1708801833104,-500.0,0.00019323,2]
[315064886,1708801833114,-654.34,0.00019323,2]
[315064888,1708801833124,-2520.85,0.00019323,2]
[315064890,1708801833134,-1647.57,0.00019324,2]
[315064892,1708801833144,-775.69,0.00019324,2]
[315064894,1708801833155,-24012.90507387,0.00019421,3]
[315065025,1708801838043,-1061.90415234,0.00019323,2]
[315065031,1708801838323,-2989.81584766,0.00019323,2]
[315065032,1708801838333,-6598.17492613,0.00019421,3]
[315065033,1708801838343,-999.35260013,0.00019426,2]
[315065034,1708801838353,-5383.41,0.00019426,2]
[315065035,1708801838363,-500.0,0.00019426,2]
[315065036,1708801838373,-500.0,0.00019427,2]
[315065037,1708801838383,-500.0,0.00019427,2]
[315065038,1708801838392,-500.0,0.00019427,2]
[315065039,1708801838401,-36733.29,0.00019431,3]
[315065040,1708801838411,-25509.23,0.00019431,3]
[315065041,1708801838420,-44079.95,0.00019441,3]
[315065042,1708801838430,-501.84729833,0.0001945,2]
[315065043,1708801838439,-500.0,0.0001945,2]
[315065044,1708801838449,-500.0,0.0001945,2]
[315065045,1708801838458,-500.0,0.0001945,2]
[315065046,1708801838468,-500.0,0.0001945,2]
[315065047,1708801838477,-500.0,0.0001945,2]
[315065048,1708801838487,-305.08549894,0.0001945,2]
[315065049,1708801838496,-154.93802479,0.0001945,2]
[315065050,1708801838505,-500.0,0.0001945,2]
[315065051,1708801838515,-500.0,0.00019451,2]
[315065052,1708801838524,-908.82,0.00019451,2]
[315065053,1708801838533,-500.0,0.00019451,2]
[315065054,1708801838542,-501.09651573,0.00019451,2]
[315065055,1708801838552,-811.32,0.00019451,2]
[315065056,1708801838561,-500.0,0.00019451,2]
[315065057,1708801838571,-800.58,0.00019451,2]
[315065058,1708801838580,-1102.59,0.00019451,2]
[315065059,1708801838589,-500.0,0.00019451,2]
[315065060,1708801838598,-500.0,0.00019451,2]
[315065061,1708801838608,-4647.64,0.00019451,2]
[315065062,1708801838617,-500.0,0.00019452,2]
[315065063,1708801838626,-500.0,0.00019452,2]
[315065064,1708801838635,-500.0,0.00019452,2]
[315065065,1708801838644,-500.0,0.00019452,2]
[315065066,1708801838655,-500.0,0.00019452,2]
[315065067,1708801838665,-524.10434703,0.00019452,2]
[315065068,1708801838676,-442.12465368,0.00019452,2]
[315065069,1708801838685,-568.6,0.00019452,2]
[315065070,1708801838694,-500.0,0.00019452,2]
[315065071,1708801838703,-500.0,0.00019452,2]
[315065072,1708801838713,-500.0,0.00019452,2]
[315065073,1708801838723,-666.29113863,0.00019497,2]
[315065074,1708801838732,-645.95,0.00019596,2]
[315065075,1708801838743,-500.0,0.00019596,2]
[315065076,1708801838752,-3981.15,0.00019596,2]
[315065077,1708801838762,-500.0,0.00019596,2]
[315065078,1708801838771,-500.0,0.00019596,2]
[315065079,1708801838781,-500.0,0.00019596,2]
[315065080,1708801838790,-614.0,0.00019596,2]
[315065081,1708801838799,-548.44878912,0.00019596,2]
[315065082,1708801838809,-559.40281713,0.00019596,2]
[315065083,1708801838818,-500.0,0.00019597,2]
[315065084,1708801838827,-246.52151735,0.00019597,2]
[315065085,1708801838837,-500.0,0.00019597,2]
[315065086,1708801838847,-500.0,0.00019597,2]
[315065087,1708801838856,-559.7,0.00019597,2]
[315065088,1708801838865,-899.78,0.00019597,2]
[315065089,1708801838874,-500.0,0.00019597,2]
[315065090,1708801838883,-728.78,0.00019597,2]
[315065091,1708801838892,-500.0,0.00019597,2]
[315065092,1708801838901,-500.0,0.00019597,2]
[315065093,1708801838910,-501.19258491,0.00019597,2]
[315065094,1708801838919,-500.0,0.00019597,2]
[315065095,1708801838928,-654.34,0.00019597,2]
[315065096,1708801838937,-2520.85,0.00019597,2]
[315065097,1708801838946,-4051.72,0.00019597,2]
[315065098,1708801838955,-1647.57,0.00019598,2]
[315065099,1708801838965,-775.69,0.00019598,2]
[315065100,1708801838974,-166.666666,0.00019627,2]
[315065101,1708801838984,-500.0,0.00019694,2]
[315065102,1708801838993,-500.0,0.00019694,2]
[315065103,1708801839002,-500.0,0.00019694,2]
[315065104,1708801839011,-500.0,0.00019694,2]
[315065105,1708801839020,-500.0,0.00019694,2]
[315065106,1708801839031,-500.0,0.00019694,2]
[315065107,1708801839041,-500.0,0.00019694,2]
[315065108,1708801839051,-500.0,0.00019694,2]
[315065109,1708801839061,-644.03515198,0.00019694,2]
[315065110,1708801839070,-500.0,0.00019694,2]
[315065111,1708801839079,-1026.8,0.00019694,2]
[315065112,1708801839089,-218.42275406,0.00019694,2]
[315065113,1708801839098,-157.56559089,0.00019694,2]
[315065114,1708801839107,-500.0,0.00019694,2]
[315065115,1708801839117,-500.0,0.00019694,2]
[315065116,1708801839126,-1048.54,0.00019694,2]
[315065117,1708801839137,-570.43,0.00019694,2]
[315065118,1708801839146,-931.13,0.00019694,2]
[315065119,1708801839155,-5383.41,0.000197,2]
[315065120,1708801839165,-500.0,0.00019724,2]
[315065121,1708801839175,-500.0,0.00019724,2]
[315065122,1708801839184,-500.0,0.00019724,2]
[315065123,1708801839193,-500.0,0.00019724,2]
[315065124,1708801839203,-500.0,0.00019725,2]
[315065125,1708801839213,-908.82,0.00019725,2]
[315065126,1708801839223,-811.32,0.00019725,2]
[315065127,1708801839232,-800.58,0.00019725,2]
[315065128,1708801839242,-1102.59,0.00019725,2]
[315065129,1708801839252,-4647.64,0.00019725,2]
[315065130,1708801839261,-626.21,0.00019726,2]
[315065131,1708801839271,-500.0,0.00019726,2]
[315065132,1708801839280,-500.0,0.00019726,2]
[315065133,1708801839290,-568.6,0.00019726,2]
[315065134,1708801839299,-500.0,0.00019726,2]
[315065135,1708801839308,-500.0,0.00019726,2]
[315065136,1708801839318,-666.29113863,0.00019771,2]
[315065137,1708801839327,-645.95,0.0001987,2]
[315065138,1708801839337,-500.0,0.0001987,2]
[315065139,1708801839346,-3981.15,0.0001987,2]
[315065140,1708801839355,-500.0,0.0001987,2]
[315065141,1708801839364,-500.0,0.0001987,2]
[315065142,1708801839373,-500.0,0.0001987,2]
[315065143,1708801839383,-614.0,0.0001987,2]
[315065144,1708801839393,-500.0,0.00019871,2]
[315065145,1708801839402,-500.0,0.00019871,2]
[315065146,1708801839412,-500.0,0.00019871,2]
[315065147,1708801839421,-559.7,0.00019871,2]
[315065148,1708801839430,-899.78,0.00019871,2]
[315065149,1708801839439,-728.78,0.00019871,2]
[315065150,1708801839448,-500.0,0.00019871,2]
[315065151,1708801839457,-500.0,0.00019871,2]
[315065152,1708801839467,-500.0,0.00019871,2]
[315065153,1708801839476,-654.34,0.00019871,2]
[315065154,1708801839486,-2520.85,0.00019871,2]
[315065155,1708801839495,-4051.72,0.00019871,2]
[315065156,1708801839505,-1647.57,0.00019872,2]
[315065157,1708801839515,-775.69,0.00019872,2]
[315065158,1708801839524,-500.0,0.00019958,2]
[315065159,1708801839533,-500.0,0.00019968,2]
[315065160,1708801839542,-596.53827503,0.00019968,2]
[315065161,1708801839552,-500.0,0.00019968,2]
[315065162,1708801839561,-500.0,0.00019968,2]
[315065163,1708801839569,-500.0,0.00019968,2]
[315065164,1708801839579,-1026.8,0.00019968,2]
[315065165,1708801839588,-1048.54,0.00019968,2]
[315065166,1708801839597,-570.43,0.00019968,2]
[315065167,1708801839606,-931.13,0.00019968,2]
[315065168,1708801839616,-5383.41,0.00019974,2]
[315065169,1708801839625,-500.0,0.00019998,2]
[315065170,1708801839634,-153.94,0.00019998,2]
[315065171,1708801839643,-500.0,0.00019998,2]
[315065172,1708801839653,-500.0,0.00019998,2]
[315065173,1708801839663,-908.82,0.00019999,2]
[315065174,1708801839674,-811.32,0.00019999,2]
[315065175,1708801839683,-800.58,0.00019999,2]
[315065176,1708801839692,-1102.59,0.00019999,2]
[315065177,1708801839701,-4647.64,0.00019999,2]
[315065178,1708801839711,-500.0,0.0002,2]
[315065179,1708801839720,-500.0,0.0002,2]
[315065180,1708801839729,-1337.44555769,0.0002,4]
[315065181,1708801839739,-568.6,0.0002,2]
[315065182,1708801839749,-500.0,0.0002,2]
[315065183,1708801839758,-500.0,0.0002,2]
[315065184,1708801839768,-666.29113863,0.00020045,2]
[315065185,1708801839777,-166.666666,0.00020076,2]
[315065186,1708801839786,-645.95,0.00020144,2]
[315065187,1708801839796,-500.0,0.00020144,2]
[315065188,1708801839805,-3981.15,0.00020144,2]
[315065189,1708801839814,-500.0,0.00020144,2]
[315065190,1708801839824,-500.0,0.00020144,2]
[315065191,1708801839833,-500.0,0.00020144,2]
[315065192,1708801839842,-614.0,0.00020144,2]
[315065193,1708801839852,-500.0,0.00020145,2]
[315065194,1708801839861,-500.0,0.00020145,2]
[315065195,1708801839870,-500.0,0.00020145,2]
[315065196,1708801839880,-559.7,0.00020145,2]
[315065197,1708801839889,-899.78,0.00020145,2]
[315065198,1708801839899,-728.78,0.00020145,2]
[315065199,1708801839908,-407.82208207,0.00020145,2]
[315065200,1708801839917,-500.0,0.00020145,2]
[315065201,1708801839926,-500.0,0.00020145,2]
[315065202,1708801839935,-654.34,0.00020145,2]
[315065203,1708801839944,-2520.85,0.00020145,2]
[315065204,1708801839953,-4051.72,0.00020145,2]
[315065205,1708801839963,-500.0,0.00020145,2]
[315065206,1708801839973,-1647.57,0.00020146,2]
[315065207,1708801839982,-775.69,0.00020146,2]
[315065208,1708801839991,-500.0,0.00020242,2]
[315065209,1708801840000,-500.0,0.00020242,2]
[315065210,1708801840010,-500.0,0.00020242,2]
[315065211,1708801840019,-1026.8,0.00020242,2]
[315065212,1708801840028,-500.0,0.00020242,2]
[315065213,1708801840037,-1048.54,0.00020242,2]
[315065214,1708801840046,-570.43,0.00020242,2]
[315065215,1708801840055,-931.13,0.00020242,2]
[315065216,1708801840064,-5383.41,0.00020248,2]
[315065217,1708801840074,-500.0,0.00020272,2]
[315065218,1708801840083,-631.03387487,0.00020272,2]
[315065219,1708801840092,-500.0,0.00020272,2]
[315065220,1708801840102,-500.0,0.00020272,2]
[315065221,1708801840112,-500.0,0.00020272,2]
[315065222,1708801840121,-500.0,0.00020273,2]
[315065223,1708801840130,-500.0,0.00020273,2]
[315065224,1708801840140,-568.6,0.00020273,2]
[315065225,1708801840149,-500.0,0.00020273,2]
[315065226,1708801840159,-908.82,0.00020273,2]
[315065227,1708801840168,-500.0,0.00020273,2]
[315065228,1708801840178,-811.32,0.00020273,2]
[315065229,1708801840187,-800.58,0.00020273,2]
[315065230,1708801840197,-1102.59,0.00020273,2]
[315065231,1708801840207,-4647.64,0.00020273,2]
[315065232,1708801840217,-666.29113863,0.00020318,2]
[315065233,1708801840226,-500.0,0.00020332,2]
[315065234,1708801840235,-500.0,0.00020342,2]
[315065235,1708801840245,-500.0,0.00020352,2]
[315065236,1708801840254,-97215.95559628,0.00020383,2]
[315065237,1708801840264,-71276.44183157,0.00020385,2]
[315065238,1708801840274,-500.0,0.00020387,2]
[315065239,1708801840283,-285.13051123,0.00020387,2]
[315065241,1708801840293,-645.95,0.00020418,2]
[315065242,1708801840302,-500.0,0.00020418,2]
[315065243,1708801840312,-3981.15,0.00020418,2]